Cogmind - Beta 17 @@@ ROGUE MODE // 2026.07.15 @ 01:52:38 Player: Smol John Result: Destroyed by S-43 Plague with Heavy Machine Gun Performance ------------- Evolutions (6) 3000 Regions Visited (15) 3000 Robots Destroyed (81) 405 Value Destroyed (3500) 3500 Prototype IDs (41) 820 Alien Tech Used (2) 400 Bonus (600) 600 TOTAL SCORE: 11725 Bonus ------- Aligned with FarCom 300 Met Zhirov 300 Cogmind --------- Core Integrity 0/1150 Matter 295/300 Energy 100/100 System Corruption 5% Temperature Cool (0) Movement Core (350) Ox6 Location -3/Proximity Caves Parts ------- > --- POWER (2) -------- (None) > --- PROPULSION (8) --- (None) > --- UTILITY (7) ------ Large Storage Unit Improved Target Analyzer Hacking Suite Quantum Router > --- WEAPON (2) ------- (None) > --- INVENTORY (15) --- Cooled Nuclear Pulse Thruster Advanced Cooling System Reaction Control System Advanced Hacking Suite Plasma Rifle Plasma Rifle Phase Gun Nova Cannon YOLO Cannon Advanced Datajack Peak State ------------ > --- POWER ------------ Light Antimatter Reactor > --- PROPULSION ------- Improved Medium Treads Advanced Medium Treads Advanced Medium Treads Myomer Leg Myomer Leg Myomer Leg Myomer Leg Improved Gravmag System > --- UTILITY ---------- Advanced Cooling System Advanced Coolant Injector Large Storage Unit Improved Weapon Shielding Layered Medium Armor Plating Hacking Suite Mini Drone Bay > --- WEAPON ----------- YOLO Cannon > --- INVENTORY -------- Multireflex Exoskeleton Myomer Leg Myomer Leg Shield Leg Improved Weapon Shielding Layered Medium Armor Plating Layered Medium Armor Plating Hacking Suite Precision Rocket Launcher Advanced Datajack Heavy Mace Axe [Rating: 116] Favorites ----------- Power Neutrino Core Engine Improved Ion Engine Power Core Neutrino Core Reactor Light Antimatter Reactor Propulsion Myomer Leg Treads Light Treads Leg Myomer Leg Wheel Wheel Hover Unit Improved Gravmag System Flight Unit VTOL Module Utility Hacking Suite Device Advanced Cooling System Storage Large Storage Unit Processor Improved Target Analyzer Hackware Hacking Suite Protection Layered Medium Armor Plating Weapon Phase Cannon Energy Gun Medium Laser Energy Cannon Phase Cannon Ballistic Gun Light Assault Rifle Ballistic Cannon Assault Cannon Launcher Precision Rocket Launcher Impact Weapon Heavy Mace Slashing Weapon Axe Special Melee Weapon Datajack Build | -11 -10 -10 -9 -9 -9 -8 -8 -7 -6 -5 -4 -4 -4 -4 -3 ------- Run | Yrd Mat Min Mat Min Exi Min Mat Fac Fac Fac Fac Upp Upp Zhi Pro Slots Evolved 12 | . . . 2 . . . 2 2 2 2 2 . . . . Power 1 | . . . . . . . . . . 1 . . . . . Propulsion 6 | . . . 1 . . . 1 1 1 1 1 . . . . Utility 5 | . . . 1 . . . 1 1 1 . 1 . . . . Weapon . | . . . . . . . . . . . . . . . . Parts Attached 99 | 7 3 . 3 1 . 2 9 3 21 11 18 8 2 8 3 Power 11 | 1 . . . . . 1 1 . 2 3 1 1 1 . . Engine 4 | 1 . . . . . 1 . . 1 1 . . . . . Core 6 | . . . . . . . 1 . 1 2 . 1 1 . . Reactor 1 | . . . . . . . . . . . 1 . . . . Propulsion 37 | 2 . . . 1 . 1 4 . 10 5 8 3 . 3 . Treads 5 | . . . . 1 . . 1 . 1 . 2 . . . . Leg 17 | 2 . . . . . 1 2 . 4 . 4 2 . 2 . Wheel 1 | . . . . . . . 1 . . . . . . . . Hover 12 | . . . . . . . . . 5 5 2 . . . . Flight 2 | . . . . . . . . . . . . 1 . 1 . Utility 30 | 1 2 . 2 . . . 2 1 4 2 8 2 1 4 1 Device 9 | . . . . . . . . 1 . 2 3 . 1 2 . Storage 3 | 1 1 . . . . . 1 . . . . . . . . Processor 2 | . 1 . . . . . . . . . . . . 1 . Hackware 7 | . . . 2 . . . 1 . 1 . 2 . . 1 . Protection 9 | . . . . . . . . . 3 . 3 2 . . 1 Artifact . | . . . . . . . . . . . . . . . . Weapon 21 | 3 1 . 1 . . . 2 2 5 1 1 2 . 1 2 Energy Gun 6 | 2 . . . . . . . . . . . 2 . 1 1 Energy Cannon 4 | . . . . . . . 1 . 2 . 1 . . . . Ballistic Gun 1 | 1 . . . . . . . . . . . . . . . Ballistic Cannon 4 | . 1 . 1 . . . 1 . 1 . . . . . . Launcher 1 | . . . . . . . . . 1 . . . . . . Special Weapon . | . . . . . . . . . . . . . . . . Impact Weapon 1 | . . . . . . . . . . 1 . . . . . Slashing Weapon 3 | . . . . . . . . 1 1 . . . . . 1 Piercing Weapon . | . . . . . . . . . . . . . . . . Special Melee Weapon 1 | . . . . . . . . 1 . . . . . . . Unidentified Prototypes 9 | . . . . . . . . . 3 . . . . 5 1 Parts Lost 59 | . . . . . . 1 3 3 6 5 11 10 . 6 14 Power 8 | . . . . . . 1 . 1 1 1 1 1 . 1 1 Propulsion 27 | . . . . . . . 2 2 2 1 6 6 . 2 6 Utility 20 | . . . . . . . . . 3 3 4 3 . 3 4 Weapon 4 | . . . . . . . 1 . . . . . . . 3 Highest Loss Streak 9 | . . . . . . 1 3 3 2 3 6 9 . 6 7 To Critical Strikes . | . . . . . . . . . . . . . . . . Average Backups 10 | 4 7 9 9 8 8 8 8 8 9 13 12 7 11 11 12 Power . | . 1 2 1 1 1 . 1 1 . . . . . . . Propulsion 2 | 3 4 4 3 2 2 2 1 . 1 4 5 2 2 . . Utility 2 | . . 1 2 3 3 3 3 4 2 1 1 1 2 3 3 Weapon 3 | . 1 1 . 1 1 2 1 2 4 6 4 2 5 6 5 Tool/Special . | . . . . . . . . . . . . . . . . Unused Backups 11 | . . . 2 . . 1 . . 2 . 2 . . . 4 Power 1 | . . . 1 . . . . . . . . . . . . Propulsion 2 | . . . 1 . . 1 . . . . . . . . . Utility 5 | . . . . . . . . . 2 . 1 . . . 2 Weapon 2 | . . . . . . . . . . . 1 . . . 1 Tool/Special 1 | . . . . . . . . . . . . . . . 1 Average Slot Usage (%) 87 | . 92 100 85 96 100 99 96 92 83 90 92 76 79 82 77 Engine 3 | . 14 14 11 11 11 10 7 . 3 4 . . . . . Core 3 | . . . . . . . 1 6 1 5 3 4 6 6 4 Treads 4 | . . . . 7 11 6 . 6 5 8 7 2 . . . Leg 15 | . 28 28 22 22 22 27 33 22 5 12 6 16 15 19 16 Hover 9 | . . . . . . . . . 18 13 25 5 5 5 2 Flight 1 | . . . . . . . . . . . . 3 5 7 7 Device 4 | . . . . . . . . 1 3 2 12 6 9 3 . Storage 6 | . 14 14 11 11 11 11 9 7 5 5 5 5 5 5 5 Hackware 12 | . . . 11 22 22 22 25 23 19 6 3 10 10 13 14 Protection 7 | . . . . . . . . . 5 15 11 9 10 6 8 Energy Gun 3 | . 14 14 11 11 11 11 . . . . . . 9 8 8 Energy Cannon 3 | . . . . . . . 7 6 5 2 8 2 . . . Ballistic Cannon 3 | . 9 14 11 11 11 11 9 7 3 . . . . . . Slashing Weapon 1 | . . . . . . . . . 1 2 . 3 . . . Peak Build Rating 116 | 6 8 8 15 16 18 18 29 34 68 77 116 105 82 108 110 Average Rating 61 | 4 7 8 12 15 16 17 24 30 53 66 100 74 77 94 97 On Entrance 40 | . 6 8 8 15 16 18 18 29 26 62 77 105 71 82 108 Avg Prop Armor Cover (%) 7 | . . . . 10 10 10 17 10 8 9 11 4 3 2 2 Naked Turns . | . . . . . . . . . . . . . . . . Heaviest Build 77 | 11 18 18 20 20 20 22 38 29 58 65 75 77 70 70 67 Greatest Support 116 | 20 20 20 20 20 20 30 40 32 72 71 100 111 75 116 116 Greatest Overweight (x) 9 | . . . . . . 1 3 . 9 1 1 2 . . 7 Average Overweight (x) . | . . . . . . . . . . . . . . . . Largest Inventory Capacity 15 | 8 10 10 10 10 10 10 15 10 15 15 15 15 15 15 15 Average Capacity 13 | 7 8 10 10 10 10 10 14 10 12 15 15 15 15 15 15 Most Carried 15 | 6 9 9 10 9 10 10 10 10 15 15 15 14 14 15 15 Average Carried 11 | 5 7 9 9 8 8 9 9 9 10 14 14 9 13 13 14 Final Capacity 15 | 8 10 10 10 10 10 10 15 10 15 15 15 15 15 15 15 Final Carried 15 | 6 9 9 9 8 10 10 10 10 15 14 14 10 14 15 11 Class Distribution -------------------- 50% | Hacker-Mutant 31% | Scavenger-Mutant 11% | Mutant 3% | Scavenger-Sprinter Dominant Class ---------------- Mutant | -10/Materials Mutant | -10/Mines Mutant | -9/Materials Hacker-Mutant | -9/Mines Hacker-Mutant | -9/Exiles Hacker-Mutant | -8/Mines Hacker-Mutant | -8/Materials Hacker-Mutant | -7/Factory Hacker-Mutant | -6/Factory Scavenger-Mutant | -5/Factory Mutant | -4/Factory Scavenger-Mutant | -4/Upper Caves Hacker-Mutant | -4/Upper Caves Hacker-Mutant | -4/Zhirov Hacker-Mutant | -3/Proximity Caves Resources | -11 -10 -10 -9 -9 -9 -8 -8 -7 -6 -5 -4 -4 -4 -4 -3 ----------- Run | Yrd Mat Min Mat Min Exi Min Mat Fac Fac Fac Fac Upp Upp Zhi Pro Matter Collected 2407 | 218 50 . 51 . . 168 102 32 403 323 607 155 88 147 63 Remotely . | . . . . . . . . . . . . . . . . Salvage Created 3430 | . 72 . 49 . . 200 129 72 630 367 1007 493 73 175 163 Parts 129 | . 7 . 5 . . 5 7 4 34 10 25 10 11 6 5 Haulers Intercepted . | . . . . . . . . . . . . . . . . Recyclers Shooed 2 | . . . . . . 1 . . . . 1 . . . . Parts Field Recycled . | . . . . . . . . . . . . . . . . Retrieved Matter . | . . . . . . . . . . . . . . . . Parts Self-Destructed 15 | . . . . . . . . . . . . 4 6 . 5 Prevented 2 | . . . . . . . . . . . . . . . 2 Parts Restored . | . . . . . . . . . . . . . . . . Kills | -11 -10 -10 -9 -9 -9 -8 -8 -7 -6 -5 -4 -4 -4 -4 -3 ------- Run | Yrd Mat Min Mat Min Exi Min Mat Fac Fac Fac Fac Upp Upp Zhi Pro Combat Hostiles Destroyed 62 | . . . 1 . . 3 3 1 12 6 15 12 4 . 5 Melee 6 | . . . . . . . . . 1 4 . 1 . . . Guns 5 | . . . . . . 1 . . . . . . 1 . 3 Cannons 31 | . . . 1 . . 2 3 1 11 . 8 5 . . . AOE 14 | . . . . . . . . . . . 5 5 3 . 1 Classes Destroyed 12 | . 1 . 1 . . 2 1 2 3 1 . 1 . . . Worker 2 | . . . . . . . . . 1 1 . . . . . Builder 7 | . . . . . . . . 1 . 1 5 . . . . Recycler 3 | . . . . . . 1 . . 1 . 1 . . . . Watcher 4 | . 3 . 1 . . . . . . . . . . . . Swarmer 17 | . . . . . . . . . 3 . . 5 4 . 5 Grunt 18 | . . . . . . 3 . . 3 2 6 4 . . . Brawler 1 | . . . . . . . . . . 1 . . . . . Duelist 2 | . . . . . . . . . . . . 2 . . . Sentry 8 | . . . 1 . . . 1 . 3 . 2 1 . . . Specialist 2 | . . . . . . . 2 . . . . . . . . Hunter 5 | . . . . . . . . 1 . . 4 . . . . Programmer 9 | . . . . . . . . . 3 3 3 . . . . Best Kill Streak 8 | . 3 . 2 . . 3 3 1 3 2 8 5 4 2 3 Combat Bots Only 5 | . . . 1 . . 3 3 1 3 1 4 5 4 . 3 Max Kills in Single Turn 3 | . 1 . 1 . . 1 1 1 1 1 3 2 2 1 1 Gunslinging . | . . . . . . . . . . . . . . . . Exploded 2 | . . . . . . . . . . . 1 2 2 . 1 Melee 1 | . . . . . . . . . 1 1 . 1 . . . Uniques/NPCs Destroyed 3 | . . . . . . . . . . . . . . 3 . Svarog (-4/Zhirov) Perun (-4/Zhirov) Zhirov (-4/Zhirov) Combat | -11 -10 -10 -9 -9 -9 -8 -8 -7 -6 -5 -4 -4 -4 -4 -3 -------- Run | Yrd Mat Min Mat Min Exi Min Mat Fac Fac Fac Fac Upp Upp Zhi Pro Hostile Shots Fired 751 | . . . 6 . . 25 60 6 100 46 141 95 19 142 111 Missed 198 | . . . 2 . . 7 26 1 30 12 46 19 9 25 21 Hits 553 | . . . 4 . . 18 34 5 70 34 95 76 10 117 90 Melee 16 | . . . . . . . . . . 7 . 9 . . . Projectile 537 | . . . 4 . . 18 34 5 70 27 95 67 10 117 90 Critical Strikes 22 | . . . . . . 2 . 1 2 3 9 5 . . . Part Disruptions 6 | . . . . . . . . . . . . . . 6 . Damage Taken 9870 | . . . 52 . . 289 414 156 974 1062 1948 1757 192 914 2112 Core 1272 | . . . . . . 33 74 28 84 . 172 170 48 77 586 Absorbed by Shields 6 | . . . . . . . . . . . 6 . . . . Redirected to Shielding 238 | . . . . . . . . . . . 52 83 38 65 . Regen/Repaired (Parts) 570 | . . . . . . . . . 65 505 . . . . . Core Remaining (%) 94 | 100 . 100 . . . 91 86 96 90 100 . . . . . Volleys Fired 164 | . 7 . 5 . . 15 12 3 30 1 51 19 4 6 11 Largest 2 | . 2 . 2 . . 2 2 2 2 1 2 2 2 1 2 Hottest 183 | . 80 . 87 . . 87 112 112 125 85 183 183 103 100 163 Shots Fired 300 | . 14 . 10 . . 30 22 6 56 1 96 30 7 7 21 Gun 54 | . 9 . 5 . . 15 . . . . . . 4 1 20 Cannon 233 | . 5 . 5 . . 15 22 6 56 1 87 30 . 6 . Launcher 13 | . . . . . . . . . . . 9 . 3 . 1 Special . | . . . . . . . . . . . . . . . . Kinetic 65 | . 7 . 5 . . 15 10 3 25 . . . . . . Thermal 217 | . 7 . 5 . . 15 12 3 31 1 87 30 . 6 20 Explosive 13 | . . . . . . . . . . . 9 . 3 . 1 Electromagnetic 5 | . . . . . . . . . . . . . 4 1 . Robot Hit Streak 8 | . 3 . 2 . . 7 6 2 6 . 8 3 1 4 5 Robot Miss Streak 4 | . 3 . 3 . . 2 3 1 3 . 3 4 2 1 4 Penetration Max . | . . . . . . . . . . . . . . . . Secondary Targets 2 | . . . . . . . . . . . . . . . 2 Max Gunslinging Chain 1 | . . . . . . . . . . . . . . . 1 Shots Hit Robots 193 | . 6 . 5 . . 22 15 5 32 27 43 16 2 6 14 Core Hits 109 | . 4 . 2 . . 9 3 2 19 7 30 18 3 2 10 Critical Kills 5 | . . . . . . . . . . . 2 1 . 2 . Critical Parts Destroyed 6 | . . . . . . . . . . 6 . . . . . Critical Strikes 21 | . . . . . . 1 2 . 2 7 2 1 . 2 4 Burn 5 | . . . . . . 1 . . . . . . . . 4 Meltdown 5 | . . . . . . . . . . . 2 1 . 2 . Blast 4 | . . . . . . . 2 . 2 . . . . . . Smash 6 | . . . . . . . . . . 6 . . . . . Sever 1 | . . . . . . . . . . 1 . . . . . Melee Attacks 138 | . . . . . . . . 3 49 78 1 2 . . 5 Impact 65 | . . . . . . . . . . 61 1 . . . 3 Slashing 73 | . . . . . . . . 3 49 17 . 2 . . 2 Piercing . | . . . . . . . . . . . . . . . . Sneak Attacks 4 | . . . . . . . . 1 1 2 . . . . . Combat Hostiles . | . . . . . . . . . . . . . . . . Follow-up Attacks 2 | . . . . . . . . . . 2 . . . . . Damage Inflicted 10845 | . 82 . 101 . . 374 389 155 1253 1240 3507 1876 219 971 678 Guns 515 | . 32 . 26 . . 160 . . . . . . 19 . 278 Cannons 5203 | . 50 . 75 . . 214 389 82 1153 . 1692 921 . 627 . Explosions 3563 | . . . . . . . . . . . 1755 914 200 344 350 Melee 1504 | . . . . . . . . 73 100 1240 . 41 . . 50 Ramming 60 | . . . . . . . . . . . 60 . . . . Kinetic 975 | . 57 . 75 . . 214 152 32 445 . . . . . . Thermal 6961 | . 25 . 26 . . 160 237 50 708 . 2671 1835 . 971 278 Explosive 1326 | . . . . . . . . . . . 776 . 200 . 350 Electromagnetic 19 | . . . . . . . . . . . . . 19 . . Impact 1077 | . . . . . . . . . . 1027 . . . . 50 Slashing 427 | . . . . . . . . 73 100 213 . 41 . . . Piercing . | . . . . . . . . . . . . . . . . Highest Corruption 11 | . . . . . . . . . 11 7 2 2 2 5 5 Average Corruption 3 | . . . . . . . . . 5 3 1 2 2 4 5 Corruption Purged . | . . . . . . . . . . . . . . . . Corruption Blocked . | . . . . . . . . . . . . . . . . Effects 84 | . . . . . . . . . 20 18 4 13 7 11 11 Message Errors 18 | . . . . . . . . . 6 4 1 2 1 3 1 Matter Fused 21 | . . . . . . . . . 6 5 1 1 3 3 2 Heat Flow Errors 9 | . . . . . . . . . 1 1 . 4 1 1 1 Energy Discharges 11 | . . . . . . . . . 1 2 . 3 1 1 3 Parts Rejected 2 | . . . . . . . . . 1 . . . . . 1 Data Loss (minor) 8 | . . . . . . . . . 2 3 . . . 2 1 Data Loss (major) 10 | . . . . . . . . . 1 3 2 2 1 . 1 Misfires 2 | . . . . . . . . . 1 . . . . 1 . Alerts 3 | . . . . . . . . . 1 . . 1 . . 1 Overload Shots . | . . . . . . . . . . . . . . . . Overflow Damage 1172 | . . . . . . . . 43 130 392 287 72 32 176 40 Projectiles 460 | . . . . . . . . . 130 . 143 70 . 117 . Explosions 247 | . . . . . . . . . . . 114 2 32 59 40 Melee 465 | . . . . . . . . 43 . 392 30 . . . . Knockbacks 17 | . . . . . . 5 1 . 5 5 1 . . . . Impact 6 | . . . . . . . . . . 5 1 . . . . Kinetic 9 | . . . . . . 4 1 . 4 . . . . . . Secondary 2 | . . . . . . 1 . . 1 . . . . . . Self-Inflicted Damage 324 | . . . . . . . . . . . 30 109 42 77 66 Shots 6 | . . . . . . . . . . . . 2 1 2 1 Rammed 1 | . . . . . . . . . . . 1 . . . . Targets Rammed 2 | . . . . . . . 1 . . . 1 . . . . Kicked 1 | . . . . . . . 1 . . . . . . . . Crushed . | . . . . . . . . . . . . . . . . Highest Temperature 463 | . 40 . 90 . . 272 333 90 433 285 197 233 224 137 463 Average Temperature 96 | . 17 . 39 . . 100 165 48 112 47 95 65 125 42 189 Received Heat Transfer 960 | . . . 18 . . 198 18 . 144 135 242 169 . 36 . Effects 6 | . . . . . . . 1 . 2 2 . . . . 1 Shutdowns 2 | . . . . . . . . . 1 . . . . . 1 Energy Bleed 1 | . . . . . . . . . . 1 . . . . . Interference 1 | . . . . . . . . . . 1 . . . . . Matter Decay 1 | . . . . . . . . . 1 . . . . . . Damage (minor) 1 | . . . . . . . 1 . . . . . . . . Siege Activations . | . . . . . . . . . . . . . . . . Martial Activations 1 | . . . . . . . . . . . . 1 . . . Total Turns 10 | . . . . . . . . . . . . 10 . . . Longest Duration 10 | . . . . . . . . . . . . 10 . . . Shielding Activations 3 | . . . . . . . . . . . . . . 1 2 Total Turns 31 | . . . . . . . . . . . . . . 21 10 Longest Duration 21 | . . . . . . . . . . . . . . 21 6 Robots Disrupted . | . . . . . . . . . . . . . . . . Combat Hostiles . | . . . . . . . . . . . . . . . . Robots Corrupted 3 | . . . . . . . . . . 2 1 . . . . Combat Hostiles 2 | . . . . . . . . . . 2 . . . . . Parts Fried 4 | . . . . . . . . . . 2 2 . . . . Impact Corruptions 15 | . . . . . . . . . . 13 2 . . . . Robots Melted 6 | . . . . . . . . . . . 2 1 . 2 1 Combat Hostiles 4 | . . . . . . . . . . . 2 1 . . 1 Parts Melted 20 | . . . . . . 2 . . 3 . 6 5 . 2 2 Heat Transferred 8058 | . 74 . 74 . . 555 333 74 678 . 2978 1943 . 440 909 Parts Sabotaged . | . . . . . . . . . . . . . . . . Parts Stolen . | . . . . . . . . . . . . . . . . Parts Stripped . | . . . . . . . . . . . . . . . . Power Chain Reactions . | . . . . . . . . . . . . . . . . Alert | -11 -10 -10 -9 -9 -9 -8 -8 -7 -6 -5 -4 -4 -4 -4 -3 ------- Run | Yrd Mat Min Mat Min Exi Min Mat Fac Fac Fac Fac Upp Upp Zhi Pro Maximum Alert Level 2 | . . . . . . . . . . . 2 . . . . Low Security (%) 90 | 100 100 100 100 100 . 100 100 100 100 100 49 . . . . Level 1 9 | . . . . . . . . . . . 50 . . . . Level 2 . | . . . . . . . . . . . . . . . . Level 3 . | . . . . . . . . . . . . . . . . Level 4 . | . . . . . . . . . . . . . . . . Level 5 . | . . . . . . . . . . . . . . . . High Security . | . . . . . . . . . . . . . . . . Max Security . | . . . . . . . . . . . . . . . . Peak Influence 394 | . 21 . 30 13 . 50 57 31 163 66 394 . . . . Initial 65 | . . . . . . . . 7 7 65 30 . . . . Average 53 | . 7 . 7 1 . 9 16 2 60 21 172 . . . . Influence Increases 2494 | . 41 . 38 13 . 77 156 81 512 349 752 260 80 . 135 Destroy 0b10 Robot/C 1240 | . . . 20 . . 60 60 20 240 120 300 240 80 . 100 Destroy 0b10 Robot/NC 80 | . 15 . 5 . . 5 . 5 10 10 30 . . . . Destroy Leader 278 | . 6 . 12 . . 10 20 10 70 30 80 20 . . 20 Successful Hack 154 | . 20 . . 13 . . 9 28 32 20 32 . . . . Disable Machine 60 | . . . . . . . . . 15 . 45 . . . . Destroy Structure 367 | . . . 1 . . 2 7 3 70 34 250 . . . . Partial Spotted 45 | . . . . . . . . . 15 30 . . . . . Lose Combat Pursuer 270 | . . . . . . . 60 15 60 105 15 . . . 15 Influence Decreases 2494 | . 41 . 38 13 . 77 139 83 393 420 479 596 76 4 135 Entered New Map 249 | . . . . . . . . 10 8 69 33 125 . 4 . Time Decay 1812 | . 41 . 38 13 . 67 109 69 328 311 336 361 76 . 63 Lost Part 423 | . . . . . . 10 30 4 57 40 110 100 . . 72 Lost Ally 10 | . . . . . . . . . . . . 10 . . . Squads Dispatched 27 | . . . . . . . 1 . 7 9 10 . . . . Investigation 7 | . . . . . . . . . 1 3 3 . . . . Extermination 8 | . . . . . . . . . 2 4 2 . . . . Reinforcement 11 | . . . . . . . 1 . 3 2 5 . . . . Assault . | . . . . . . . . . . . . . . . . Garrison 1 | . . . . . . . . . 1 . . . . . . Intercept . | . . . . . . . . . . . . . . . . Searches Triggered . | . . . . . . . . . . . . . . . . Construction Impeded 2 | . . . . . . . . . 1 . 1 . . . . Haulers Reinforced . | . . . . . . . . . . . . . . . . Active Scanning Responses . | . . . . . . . . . . . . . . . . Cargo Convoy Interrupts . | . . . . . . . . . . . . . . . . Stealth | -11 -10 -10 -9 -9 -9 -8 -8 -7 -6 -5 -4 -4 -4 -4 -3 --------- Run | Yrd Mat Min Mat Min Exi Min Mat Fac Fac Fac Fac Upp Upp Zhi Pro Distress Signals 10 | . . 1 1 . . . 2 1 1 3 1 . . . . Communications Jammed . | . . . . . . . . . . . . . . . . Distress Signals . | . . . . . . . . . . . . . . . . Times Spotted 111 | . 4 . 2 . . 3 6 5 13 20 22 12 5 5 14 Peak Tracking Total 6 | . 3 . 2 . . 3 6 1 4 4 4 5 5 3 5 Tactical Retreats 10 | . . . . . . . 2 1 2 3 1 . . . 1 Traps | -11 -10 -10 -9 -9 -9 -8 -8 -7 -6 -5 -4 -4 -4 -4 -3 ------- Run | Yrd Mat Min Mat Min Exi Min Mat Fac Fac Fac Fac Upp Upp Zhi Pro Traps Triggered 7 | . . . . . . . . . 4 . 3 . . . . Indirectly . | . . . . . . . . . . . . . . . . Trap Hack Attempts 6 | . . . . . . . . 1 . 5 . . . . . Triggered . | . . . . . . . . . . . . . . . . Disarmed 1 | . . . . . . . . . . 1 . . . . . Reprogrammed 1 | . . . . . . . . 1 . . . . . . . Reused . | . . . . . . . . . . . . . . . . Traps Extracted . | . . . . . . . . . . . . . . . . Installed . | . . . . . . . . . . . . . . . . Triggered . | . . . . . . . . . . . . . . . . Time Bombs Activated 1 | . . . . . . . . . . . . . . . 1 Machines | -11 -10 -10 -9 -9 -9 -8 -8 -7 -6 -5 -4 -4 -4 -4 -3 ---------- Run | Yrd Mat Min Mat Min Exi Min Mat Fac Fac Fac Fac Upp Upp Zhi Pro Machines Disabled 6 | . . . . . . . . . 1 . 3 . . 2 . Max in Single Turn 1 | . . . . . . . . . 1 . 1 . . 1 . Machines Repaired . | . . . . . . . . . . . . . . . . Machines Dismantled . | . . . . . . . . . . . . . . . . Machines Sabotaged . | . . . . . . . . . . . . . . . . Overloaded Fab Kills . | . . . . . . . . . . . . . . . . Hacking | -11 -10 -10 -9 -9 -9 -8 -8 -7 -6 -5 -4 -4 -4 -4 -3 --------- Run | Yrd Mat Min Mat Min Exi Min Mat Fac Fac Fac Fac Upp Upp Zhi Pro Machines Accessed 43 | . 2 . 2 1 2 . 2 4 4 11 6 . 3 6 . Terminals 23 | . 2 . 1 1 . . 2 3 3 6 5 . . . . Fabricators 2 | . . . . . . . . 1 . . 1 . . . . Repair Stations 4 | . . . . . . . . . 1 3 . . . . . Recycling Units 2 | . . . . . . . . . . 2 . . . . . Scanalyzers 1 | . . . 1 . . . . . . . . . . . . Garrison Access . | . . . . . . . . . . . . . . . . Total Hacks 105 | . 6 . 5 5 2 . 6 7 10 28 11 . 6 19 . Successful 65 | . 3 . 2 4 2 . 5 4 5 11 4 . 6 19 . Failed 39 | . 3 . 2 1 . . 1 3 5 17 7 . . . . Catastrophic 9 | . 1 . . 1 . . . 1 1 2 3 . . . . Database Lockouts 1 | . . . 1 . . . . . . . . . . . . Manual 43 | . 5 . 2 3 1 . 5 3 3 13 8 . . . . Terminals 55 | . 6 . 2 5 . . 6 6 7 14 9 . . . . Fabricators 3 | . . . . . . . . 1 . . 2 . . . . Repair Stations 11 | . . . . . . . . . 3 8 . . . . . Recycling Units 6 | . . . . . . . . . . 6 . . . . . Scanalyzers 3 | . . . 3 . . . . . . . . . . . . Garrison Access . | . . . . . . . . . . . . . . . . Terminal Hacks 48 | . 2 . 1 4 2 . 3 3 3 3 2 . 6 19 . Record 16 | . . . . 2 1 . . . . 1 1 . 4 7 . Part Schematic 4 | . . . . . . . . . . . . . . 4 . Robot Analysis 5 | . . . . . . . 1 . . . . . . 4 . Prototype ID Bank 4 | . . . . . . . . . . . . . . 4 . Open Door 3 | . . . . . . . . . 1 . . . 2 . . Level Access Points 4 | . . . . 1 . . 1 1 1 . . . . . . Branch Access Points 4 | . 1 . 1 1 . . . 1 . . . . . . . Terminal Index 4 | . . . . . . . 1 . 1 1 1 . . . . Hauler Manifests 1 | . 1 . . . . . . . . . . . . . . Zone Layout 2 | . . . . . . . . 1 . 1 . . . . . Proto ID Catalog 1 | . . . . . 1 . . . . . . . . . . Fabricator Hacks 2 | . . . . . . . . 1 . . 1 . . . . Build 2 | . . . . . . . . 1 . . 1 . . . . Repair Station Hacks 8 | . . . . . . . . . 2 6 . . . . . Scan Component 4 | . . . . . . . . . 1 3 . . . . . Repair 4 | . . . . . . . . . 1 3 . . . . . Recycling Unit Hacks 2 | . . . . . . . . . . 2 . . . . . Report Inventory 1 | . . . . . . . . . . 1 . . . . . Retrieve Matter 1 | . . . . . . . . . . 1 . . . . . Scanalyzer 1 | . . . 1 . . . . . . . . . . . . Retrieve Study 1 | . . . 1 . . . . . . . . . . . . Garrison Access Hacks . | . . . . . . . . . . . . . . . . Unauthorized Hacks 4 | . 1 . . . . . 2 . . . 1 . . . . Terminals 4 | . 1 . . . . . 2 . . . 1 . . . . Assimilate 4 | . 1 . . . . . 2 . . . 1 . . . . Fabricators . | . . . . . . . . . . . . . . . . Repair Stations . | . . . . . . . . . . . . . . . . Recycling Units . | . . . . . . . . . . . . . . . . Scanalyzers . | . . . . . . . . . . . . . . . . Garrison Access . | . . . . . . . . . . . . . . . . Data Cores Recovered . | . . . . . . . . . . . . . . . . Used . | . . . . . . . . . . . . . . . . Hacking Detections 23 | . 1 . 1 1 . . 1 3 2 10 4 . . . . Full Trace Events 8 | . 1 . . . . . . . 1 3 3 . . . . Feedback Events . | . . . . . . . . . . . . . . . . Feedback Blocked . | . . . . . . . . . . . . . . . . Robot Schematics Acquired . | . . . . . . . . . . . . . . . . Robots Built 2 | . . . . . . . . 2 . . . . . . . Authchips . | . . . . . . . . . . . . . . . . Time 81 | . . . . . . . . 81 . . . . . . . Total Robot Build Rating 2 | . . . . . . . . 2 . . . . . . . Part Schematics Acquired 4 | . . . . . . . . . . . . . . 4 . Parts Built 2 | . . . . . . . . . . . 2 . . . . Authchips . | . . . . . . . . . . . . . . . . Time 117 | . . . . . . . . . . . 117 . . . . Total Part Build Rating 14 | . . . . . . . . . . . 14 . . . . Part Studies Acquired . | . . . . . . . . . . . . . . . . Parts Repaired 4 | . . . . . . . . . 1 3 . . . . . Time 125 | . . . . . . . . . 26 99 . . . . . Parts Recycled . | . . . . . . . . . . . . . . . . Recycled Matter . | . . . . . . . . . . . . . . . . Retrieved Matter . | . . . . . . . . . . . . . . . . Retrieved Components . | . . . . . . . . . . . . . . . . Parts Scanalyzed . | . . . . . . . . . . . . . . . . Part Schematics Acquired . | . . . . . . . . . . . . . . . . Parts Damaged . | . . . . . . . . . . . . . . . . Bothacking | -11 -10 -10 -9 -9 -9 -8 -8 -7 -6 -5 -4 -4 -4 -4 -3 ------------ Run | Yrd Mat Min Mat Min Exi Min Mat Fac Fac Fac Fac Upp Upp Zhi Pro Used RIF Installer . | . . . . . . . . . . . . . . . . Robots Hacked . | . . . . . . . . . . . . . . . . Non-combat . | . . . . . . . . . . . . . . . . Combat . | . . . . . . . . . . . . . . . . Robot Hacks Applied . | . . . . . . . . . . . . . . . . Relay Couplers Released . | . . . . . . . . . . . . . . . . Fabnet Peak Effective % . | . . . . . . . . . . . . . . . . Robots Rewired . | . . . . . . . . . . . . . . . . Allies Hacked . | . . . . . . . . . . . . . . . . Hacks Repelled . | . . . . . . . . . . . . . . . . Allies | -11 -10 -10 -9 -9 -9 -8 -8 -7 -6 -5 -4 -4 -4 -4 -3 -------- Run | Yrd Mat Min Mat Min Exi Min Mat Fac Fac Fac Fac Upp Upp Zhi Pro Total Allies 4 | . . . . 2 . . . 2 . . . . . . . Largest Group 2 | . . . . 2 2 . . 2 . . . . . . . Highest-Rated Group 36 | . . . . 36 36 . . 20 . . . . . . . Highest-Rated Ally 31 | . . . . 31 31 . . 10 . . . . . . . Total Orders 4 | . . . . . . . . 1 . . 2 1 . . . ROAM 1 | . . . . . . . . 1 . . . . . . . EXPLORE 3 | . . . . . . . . . . . 2 1 . . . Ally Attacks . | . . . . . . . . . . . . . . . . Total Damage . | . . . . . . . . . . . . . . . . Kills . | . . . . . . . . . . . . . . . . Allies Corrupted . | . . . . . . . . . . . . . . . . Allies Melted . | . . . . . . . . . . . . . . . . Intel | -11 -10 -10 -9 -9 -9 -8 -8 -7 -6 -5 -4 -4 -4 -4 -3 ------- Run | Yrd Mat Min Mat Min Exi Min Mat Fac Fac Fac Fac Upp Upp Zhi Pro Active Infowar (turns) 481 | . 82 125 122 . . . . 116 23 . 13 . . . . Optics 329 | . 82 125 122 . . . . . . . . . . . . Traps 13 | . . . . . . . . . . . 13 . . . . Jamming 139 | . . . . . . . . 116 23 . . . . . . Robot Analysis Total 5 | . . . . . . . 1 . . . . . . 4 . Derelict Logs Recovered 5 | . . . . 2 . . . . . . . 1 2 . . Drone Launches 6 | . . . . . . . . . . . 3 3 . . . Drone Recoveries 5 | . . . . . . . . . . . 3 2 . . . Exploration | -11 -10 -10 -9 -9 -9 -8 -8 -7 -6 -5 -4 -4 -4 -4 -3 ------------- Run | Yrd Mat Min Mat Min Exi Min Mat Fac Fac Fac Fac Upp Upp Zhi Pro Turns Passed 9074 | 86 158 125 165 124 335 428 394 533 1364 1717 1161 1094 528 385 477 Spaces Moved 6344 | 64 108 104 117 91 279 302 255 381 824 1055 974 760 422 271 337 Core 20 | 10 . . . . . . . . 9 . . . . . 1 Treads 200 | . . . . . . . . 15 84 23 78 . . . . Legs 4584 | 54 108 104 117 91 279 302 224 366 130 775 245 760 422 271 336 Wheels 31 | . . . . . . . 31 . . . . . . . . Hover 1509 | . . . . . . . . . 601 257 651 . . . . Flight . | . . . . . . . . . . . . . . . . Fastest Speed 30 | 50 120 120 120 120 120 120 120 110 38 34 30 120 120 117 105 Average Speed 104 | 109 120 120 120 120 120 120 124 111 102 98 62 121 120 117 116 Slowest Speed 500 | 120 120 120 120 120 120 190 190 160 500 240 190 260 120 123 400 Overloaded Moves 5 | . . . . . . . . . . . . 5 . . . Propulsion Burnouts . | . . . . . . . . . . . . . . . . Robots Hopped . | . . . . . . . . . . . . . . . . Potential Cave-ins 43 | . . . . . . . . . 22 18 3 . . . . Cave-ins Triggered 2 | . . . . . . . . . 1 1 . . . . . Teleports 2 | . . . . . . . . . . . . . . 1 1 Exploration Rate (%) 36 | 4 32 23 11 17 61 70 19 12 21 31 29 94 54 60 45 Regions Visited 15 Branch Regions 8 Pre-discovered Areas 6 | . . . . 1 1 . . . . . . . 1 3 . Known Exits Taken 6 | . 1 . 1 . . 1 1 1 1 . . . . . . Unknown Exits Taken 9 | 1 . 1 . 1 1 . . . . 1 1 1 1 1 . Scrap Searched 3 | . . . . . . . . . . . . 1 1 . 1 Spaces Dug 114 | . . . . . . . . 2 48 37 27 . . . . Terrain Destroyed 428 | . . . 1 . . 2 6 3 100 37 167 54 29 7 22 Melee 82 | . . . . . . . . 2 44 36 . . . . . Projectile 79 | . . . 1 . . 2 6 1 15 1 43 9 . 1 . AOE 267 | . . . . . . . . . 41 . 124 45 29 6 22 Terrain Rammed . | . . . . . . . . . . . . . . . . Walls Destroyed . | . . . . . . . . . . . . . . . . Machines Disabled . | . . . . . . . . . . . . . . . . Actions | -11 -10 -10 -9 -9 -9 -8 -8 -7 -6 -5 -4 -4 -4 -4 -3 --------- Run | Yrd Mat Min Mat Min Exi Min Mat Fac Fac Fac Fac Upp Upp Zhi Pro Total 8169 | 76 123 104 134 106 279 336 306 474 1192 1598 1415 879 434 320 393 Wait 1153 | . . 1 . 15 . 11 23 79 194 426 292 77 . 8 27 Move 6329 | 63 107 103 116 90 278 301 254 380 823 1054 973 759 421 270 337 Hop . | . . . . . . . . . . . . . . . . Pick Up 94 | 6 4 . 5 . 1 3 5 2 20 9 21 2 4 10 2 Fast Attach 54 | 6 1 . 1 . . . 2 . 12 8 13 4 2 4 1 Attach 62 | . . . 1 1 . 1 4 2 10 7 12 10 . 10 4 Detach 12 | . . . . . . . . . 3 . 2 4 . 3 . Swap 44 | 1 2 . 1 . . 2 3 4 15 4 8 . 2 . 2 Drop 60 | . 2 . 5 . . 3 2 . 10 10 19 2 . 4 3 Fire 164 | . 7 . 5 . . 15 12 3 30 1 51 19 4 6 11 Melee 134 | . . . . . . . . 3 49 74 1 2 . . 5 Ram 1 | . . . . . . . . . . . 1 . . . . Kick 1 | . . . . . . . 1 . . . . . . . . Crush . | . . . . . . . . . . . . . . . . Escape Stasis 52 | . . . . . . . . . 26 . 22 . . 4 . Rewire 2 | . . . . . . . . . . . . . 1 1 . Trap 7 | . . . . . . . . 1 . 5 . . . . 1 Miscellaneous . | . . . . . . . . . . . . . . . . Route ------- -11/Scrapyard -10/Materials -10/Mines -9/Materials (discovered 4 exits: *Min x2 / Sto x2) -9/Mines (discovered 3 exits: Mat x2 / *Exi) -9/Exiles -8/Mines -8/Materials (discovered 3 exits: *Fac x3) -7/Factory (discovered 6 exits: *Fac x4 / *Low x2) -6/Factory (discovered 6 exits: *Fac x4 / [*Ext x2]) -5/Factory -4/Factory (discovered 2 exits: [*Res] / [*Upp]) -4/Upper Caves -4/Upper Caves -4/Zhirov -3/Proximity Caves History --------- Turn | Location | Event 2 | -11/Scrapyard | Met Revision 17 9 | -11/Scrapyard | Discovered new exit (range 14) 87 | -11/Scrapyard | Entered Materials 130 | -10/Materials | Identified exit to Mines 245 | -10/Materials | Entered Mines 279 | -10/Mines | Discovered new exit (range 14) 302 | -10/Mines | Build established: Mutant 314 | -10/Mines | Assembled infested the area 370 | -10/Mines | Entered Materials 370 | -9/Materials | Evolved 2 slots: Propulsion x1, Utility x1 464 | -9/Materials | Central database locked down 493 | -9/Materials | Identified exit to Mines 493 | -9/Materials | Identified exit to Storage 535 | -9/Materials | Entered Mines 562 | -9/Mines | Learned location of Storage (-9) 626 | -9/Mines | Identified exit to Materials 637 | -9/Mines | Deemed a non-threat by the Exiles lab entrance 638 | -9/Mines | Discovered new exit (range 5) 659 | -9/Mines | Entered Exiles 659 | -9/Exiles | Accompanied by 2 allies 689 | -9/Exiles | Led the pair of lost Derelicts to a safe place 695 | -9/Exiles | Met 8R-AWN 733 | -9/Exiles | Met EX-HEX 777 | -9/Exiles | Met EX-BIN 798 | -9/Exiles | Build established: Hacker-Mutant 799 | -9/Exiles | Aligned with FarCom system 800 | -9/Exiles | Given EX-Vault access code 836 | -9/Exiles | Opened EX-Vault 845 | -9/Exiles | Found YOLO Cannon 872 | -9/Exiles | Warned to stay clear of 0b10 Research branches 909 | -9/Exiles | Met EX-DEC 923 | -9/Exiles | Learned location of Zion (-7) 972 | -9/Exiles | Discovered new exit (range 14) 994 | -9/Exiles | Left Exiles lab with YOLO Cannon 994 | -9/Exiles | Entered Mines 1415 | -8/Mines | Discovered exit to Materials (range 6) 1422 | -8/Mines | Entered Materials 1422 | -8/Materials | Evolved 2 slots: Propulsion x1, Utility x1 1469 | -8/Materials | Identified exit to Factory 1753 | -8/Materials | Lost 3 parts (2n1w) 1816 | -8/Materials | Entered Factory 1816 | -7/Factory | Evolved 2 slots: Propulsion x1, Utility x1 2155 | -7/Factory | Fabricated T-07 Excavator? 2175 | -7/Factory | Identified exit to Factory 2311 | -7/Factory | Identified exit to Lower Caves 2349 | -7/Factory | Entered another Factory area 2349 | -6/Factory | Evolved 2 slots: Propulsion x1, Utility x1 2355 | -6/Factory | Lost 3 parts (1p2n) 2569 | -6/Factory | Repaired Med. Storage Unit 2777 | -6/Factory | Identified exit to Factory 2999 | -6/Factory | Discovered new exit (range 6) 3188 | -6/Factory | Garrison activated, responded to threat 3297 | -6/Factory | Crushed by falling debris 3297 | -6/Factory | System corruption reached 10% 3319 | -6/Factory | Discovered new exit (range 9) 3713 | -6/Factory | Entered another Factory area 3713 | -5/Factory | Evolved 2 slots: Power x1, Propulsion x1 3747 | -5/Factory | Repaired Imp. Light Armor Plating 4063 | -5/Factory | Build established: Scavenger-Mutant 4659 | -5/Factory | Repaired Aerolev Unit? 4909 | -5/Factory | Crushed by falling debris 4987 | -5/Factory | Lost 3 parts (1n2u) 5344 | -5/Factory | Repaired Lyr. Medium Armor Plating 5422 | -5/Factory | Discovered new exit (range 14) 5430 | -5/Factory | Entered another Factory area 5430 | -4/Factory | Evolved 2 slots: Propulsion x1, Utility x1 5559 | -4/Factory | Fabricated Phase Gun? 5887 | -4/Factory | Build established: Scavenger-Sprinter 6015 | -4/Factory | Lost 6 parts (4n2u) 6059 | -4/Factory | Lost 3 parts (1n2u) 6266 | -4/Factory | Build established: Mutant 6439 | -4/Factory | Discovered new exit (range 36) 6451 | -4/Factory | Discovered new exit (range 25) 6591 | -4/Factory | Entered Upper Caves 6593 | -4/Upper Caves | Attracted the attention of an 0b10 checkpoint 6891 | -4/Upper Caves | Lost 9 parts (1p5n3u) 7216 | -4/Upper Caves | Learned 12 Research zone layouts 7221 | -4/Upper Caves | Build established: Scavenger-Mutant 7618 | -4/Upper Caves | Discovered new exit (range 8) 7685 | -4/Upper Caves | Entered another Upper Caves area 7891 | -4/Upper Caves | Entered an active Warlord outpost 7908 | -4/Upper Caves | Learned Extension terminal intel 7962 | -4/Upper Caves | Build established: Hacker-Mutant 8006 | -4/Upper Caves | Learned Research emergency access door positions 8119 | -4/Upper Caves | Learned Research terminal intel 8200 | -4/Upper Caves | Discovered new exit (range 11) 8213 | -4/Upper Caves | Entered Zhirov 8213 | -4/Zhirov | Discovered new exit (range 3) 8235 | -4/Zhirov | Met Zhirov 8277 | -4/Zhirov | Attacked by Zhirov 8289 | -4/Zhirov | Destroyed Svarog 8310 | -4/Zhirov | Destroyed Perun 8314 | -4/Zhirov | Destroyed Zhirov 8327 | -4/Zhirov | Found Adv. Powered Armor 8341 | -4/Zhirov | Lost 6 parts (1p2n3u) 8344 | -4/Zhirov | Found Prototype Hackware 8346 | -4/Zhirov | Found Alien Artifact 8349 | -4/Zhirov | Found Zhirov Special 8351 | -4/Zhirov | Identified Transdimensional Reconstructor 8351 | -4/Zhirov | Warped through subspace 8352 | -4/Zhirov | Identified Quantum Router 8407 | -4/Zhirov | Found Alien Artifact 8474 | -4/Zhirov | Found Transdimensional Reconstructor 8500 | -4/Zhirov | Learned location of Quarantine (-3) 8500 | -4/Zhirov | Learned location of Testing (-2) 8500 | -4/Zhirov | Learned location of Command (-1) 8598 | -4/Zhirov | Entered Proximity Caves 8833 | -3/Proximity Caves | Core integrity fell below 50% 8870 | -3/Proximity Caves | Lost 4 parts (3n1u) 8997 | -3/Proximity Caves | Identified Integrated Dissipator 8997 | -3/Proximity Caves | Installed Integrated Dissipator, increased core heat dissipation (+20) 9001 | -3/Proximity Caves | Warped through subspace 9026 | -3/Proximity Caves | Lost 3 parts (1p1n1u) 9068 | -3/Proximity Caves | Core integrity fell below 20% 9075 | -3/Proximity Caves | Destroyed by S-43 Plague with Heavy Machine Gun Last Messages --------------- 09038_ Acquired 2 matter. 09054_ Lyr. Medium Armor Plating destroyed. 09056_ Enh. Biometal Leg destroyed. 09057_ Destroyed Xenon Bombardment Thruster. 09057_ Prc. Rocket Launcher destroyed. 09057_ Destroyed Prc. Rocket Launcher. 09057_ S-43 Plague destroyed. 09059_ Multireflex Exoskeleton destroyed. 09061_ System corrupted: Cld. Nuclear Pulse Thruster rejected. 09062_ Hacking Suite destroyed. 09064_ Hvy. Mace destroyed. 09065_ Dropped Zhirov Special. 09066_ Acquired Cld. Nuclear Pulse Thruster. 09072_ The unstable cave ceiling collapses. 09072_ Mak. Axe destroyed. 09072_ Acquired Zhirov Special. 09073_ Dropped Zhirov Special. 09074_ Started Zhirov Special timer (10). Map ----- +----------------------------------------------------+ | #?# ### #?##### ## ## | | ### #?## #????# # ##### #? | | #??# ####???# ## #?## #? | | #??## ##?????# ## ### #? | | #########???####??###?# ### ## | | #????????????????## ## ####?# #### | | #??????????????## ##?????# ####?# | | # #?????????????# ###???# ##### | | # ## ##?????????????# ##??## ## | | ## #####??????? ??????# #??## | | ?# ##????????? ????## ##?# # | | ?# ##??????????# ?????## %### =% # | | ?# #????????????# ?????# ### ####= # | | ?# #????????????# ?????# % ###???## # | | ?? ?????????????# #???## %#??????? # | | ??????????????????# %#### #??????? ## | | ???????????????????# % ### ##?????? #? | | ???????????????????# %% ## #??????? #? | | ????????????????????# % % ## #????? ? | | ?????????????????????# % % ##? ##????? ? | | ?????????????????????## ## ##?????? | | ?????????####?????????# % #???????? | | ???????? ???????# ## % ????? | | ???????? ?????# s % ### % ????? | | ??????????# ???# s ## ????? | | ???????????# ##s @ ###### ??????# | | ????????????# s #???? #?????? | | ????????????# ## #????? ???????? | | ???????????# ########?????#####???????? | | ??????????# ????????????????????????? | | ????????# ???????????????????????? | | ????????? ??????????????????????? | | ?????????# ??????????????????????? | | ?????????# ?????????????????????? | | ?????????? # ## ### ????????????????????? | | ?????????? ?# #?# ??? ???????????????????? | | ?????????????# ??## #??? ???????????????????? | | ????????????? ????###????? ??????????????????? | | ????????????? ????????????? ## ?????????????????? | | ????????????????????????????#????????????????????? | | ?????????????????????????????????????????????????? | | ?????????????????????????????????????????????????? | | ?????????????????????????????????????????????????? | | ?????????????????????????????????????????????????? | | ?????????????????????????????????????????????????? | | ?????????????????????????????????????????????????? | | ?????????????????????????????????????????????????? | | ?????????????????????????????????????????????????? | | ?????????????????????????????????????????????????? | | ?????????????????????????????????????????????????? | +----------------------------------------------------+ Best States ------------- Heat Dissipation 74 Coolant Potential 100 Energy Generation 41 Energy Capacity 530 Matter Stores 300 Matter Capacity 300 Sight Range 18 Terrain Scan Density 10 Jamming Range 12 Armor Coverage 625 Weapon Shielding 66 Evasion (%) 63 Target Analysis 6 Recoil Reduction 3 Energy Filtering 30 Offensive Hacking 40 Defensive Hacking 25 Item Schematics ----------------- Assault Drone Bay | -4/Zhirov | Free Exp. Heat Sink | -4/Zhirov | Free Exp. Optical Array | -4/Zhirov | Free Imp. Arc Thrower | -4/Zhirov | Free Robot Schematics ------------------ None Fabricated ------------ T-07 Excavator | x2 | -7/Factory | Preloaded Phase Gun | x2 | -4/Factory | Preloaded Repaired ---------- Med. Storage Unit | 74% | -6/Factory Imp. Light Armor Plating | 18% | -5/Factory Aerolev Unit | 18% | -5/Factory Lyr. Medium Armor Plating | 10% | -5/Factory Studied --------- None Alien Tech Used ----------------- Transdimensional Reconstructor Integrated Dissipator Achievements -------------- Alien Tech Into The Breach Subspace Traveler The Science Guy This Is My Hole root@ Challenges ------------ None Game ------ Seed DisassembledAlphaGun Manual? 0 Play Time 01:57:02 Cumulative 32.9 hours Start 2026.07.14 @ 22:28:35 End 2026.07.15 @ 01:52:38 Sessions 5 Manual Loads 0 Difficulty Rogue Special Mode None Game No. 48 Rogue 48 Adventurer 0 Explorer 0 Win Type - Total 0 Types 0/0/0/0/0/0/0/0/0/0 Lore% 29 Gallery% 29 Achievement% 23 Wizard Run 0 Options --------- Layout 1 ASCII 0 Keyboard 0 Movement Numpad Keybinds 0 Fullscreen 1 Font 20/SmallcapsGlow Map View 50x35 Zoom Use 0% Tactical HUD 1 Map Filters NONE Filters NONE Steam 1 RUN: 7c6a75ad-0402-4726-a17d-839d6098cfe0